fUSD/lending_fUSD_20240529
["ID","MTS","AMOUNT","RATE_DAILY","PERIOD"]
[328154800,1716952235463,-4895.61008879,0.00035376,2]
[328154801,1716952235475,-514.69593955,0.00035376,2]
[328154802,1716952238158,-2674.79751965,0.00035376,2]
[328154820,1716952238408,-131131.9914715,0.00035376,2]
[328154821,1716952238417,-161.93136508,0.00035383,2]
[328154822,1716952238426,-39239.0241,0.000354,2]
[328154823,1716952238437,-208.66969489,0.000354,10]
[328154824,1716952238447,-188.94847662,0.000354,2]
[328154825,1716952238456,-170.8830209,0.000354,10]
[328154826,1716952238466,-161.93136508,0.000354,2]
[328154827,1716952238475,-385.41340038,0.000354,2]
[328154828,1716952238485,-258.79435456,0.000354,2]
[328154829,1716952238495,-182.9425695,0.00035476,2]
[328154830,1716952238505,-182.9425695,0.00035476,2]
[328154831,1716952238514,-182.9425695,0.00035476,2]
[328154832,1716952238530,-182.9425695,0.00035476,2]
[328154833,1716952238539,-182.9425695,0.00035476,2]
[328154834,1716952238549,-4242.872288,0.00035476,2]
[328154835,1716952238559,-3539.7014246,0.00035476,2]
[328154836,1716952238568,-2836.5305612,0.00035476,2]
[328154837,1716952238579,-2133.3596978,0.00035476,2]
[328154838,1716952238588,-1430.1888344,0.00035476,2]
[328154839,1716952238598,-657.2895591,0.00035476,2]
[328154840,1716952238607,-548.9816674,0.00035476,2]
[328154841,1716952238618,-440.6737757,0.00035476,2]
[328154842,1716952238627,-332.365884,0.00035476,2]
[328154843,1716952238636,-224.0579923,0.00035476,2]
[328154845,1716952238645,-188.47964542,0.0003549,2]
[328154848,1716952238655,-5292.23760912,0.00035498,2]
[328154849,1716952238664,-2000.0,0.00035499,2]
[328154850,1716952238673,-500.0,0.00035499,8]
[328154851,1716952238683,-500.0,0.00035499,8]
[328154852,1716952238693,-500.0,0.00035499,8]
[328154853,1716952238702,-500.0,0.00035499,8]
[328154854,1716952238711,-500.0,0.00035499,8]
[328154855,1716952238721,-500.0,0.00035499,8]
[328154856,1716952238731,-500.0,0.00035499,8]
[328154857,1716952238740,-500.0,0.00035499,8]
[328154858,1716952238750,-618.83281064,0.00035499,8]
[328154859,1716952238759,-500.0,0.00035499,8]
[328154860,1716952238769,-500.0,0.00035499,8]
[328154861,1716952238780,-500.0,0.00035499,8]
[328154862,1716952238790,-500.0,0.00035499,8]
[328154863,1716952238799,-500.0,0.00035499,8]
[328154864,1716952238808,-500.0,0.00035499,8]
[328154865,1716952238818,-500.0,0.00035499,8]
[328154866,1716952238827,-500.0,0.00035499,8]
[328154867,1716952238836,-500.0,0.00035499,8]
[328154868,1716952238846,-500.0,0.00035499,8]
[328154869,1716952238855,-500.0,0.00035499,8]
[328154870,1716952238865,-500.0,0.00035499,8]
[328154871,1716952238874,-500.0,0.00035499,8]
[328154872,1716952238891,-500.0,0.00035499,8]
[328154873,1716952238903,-500.0,0.00035499,8]
[328154874,1716952238912,-500.0,0.00035499,8]
[328154875,1716952238922,-342.51019528,0.00035499,8]
[328154876,1716952238931,-2378.67535,0.00035499,2]
[328154877,1716952238941,-274.0,0.000355,5]
[328154878,1716952238951,-839.0903419,0.000355,5]
[328154879,1716952238961,-4544.70477249,0.000355,11]
[328154880,1716952238970,-96009.95981768,0.000355,5]
[328154881,1716952238983,-1736.31687193,0.000355,5]
[328154882,1716952238994,-24891.07024,0.000355,5]
[328154883,1716952239005,-8367.0,0.000355,5]
[328154884,1716952239017,-598.12889179,0.000355,5]
[328154885,1716952241232,-763.72000427,0.000355,5]
[328154886,1716952243144,-1000.0,0.00035276,2]
[328154887,1716952243154,-1073.89652414,0.000355,5]
[328154888,1716952243391,-2000.28507544,0.000355,5]
[328154889,1716952243403,-328.04999985,0.000355,5]
[328154890,1716952243678,-3464.4888,0.000355,5]
[328154891,1716952243692,-792.16022245,0.000355,5]
[328154934,1716952246625,-248.0,0.000355,5]
[328154935,1716952246635,-537.95874435,0.000355,5]
[328154936,1716952258256,3219.27596702,0.00013973,2]
[328154937,1716952413086,158.13,0.00013973,2]
[328154938,1716952888894,155.95,0.00013973,2]
[328155012,1716953432461,-411.91157023,0.00027,2]
[328155014,1716953432472,-158.86276178,0.00029249,2]
[328155016,1716953432482,-158.13,0.00029349,2]
[328155018,1716953432491,-155.0,0.0003,2]
[328155021,1716953432503,-537.29566799,0.000308,4]
[328155024,1716953432514,-277.94262863,0.000308,4]
[328155040,1716953438581,-283.2,0.000308,4]
[328155041,1716953438593,-283.56170338,0.000308,4]
[328155042,1716953438603,-725.81859571,0.000308,2]
[328155043,1716953438614,-661.82140429,0.000308,2]
[328155044,1716953438624,-239.31,0.00031172,2]
[328155045,1716953438634,-226.01793324,0.00031948,7]
[328155046,1716953438643,-15647.77946247,0.00032,3]
[328155049,1716953442471,-688.47515474,0.00032,3]
[328155055,1716953443816,-1378.665,0.00032,3]
[328155056,1716953443828,-2307.08038279,0.00032,3]
[328155057,1716953443838,-250.0,0.00033057,2]
[328155058,1716953443847,-452.21812099,0.00033095,2]
[328155059,1716953443859,-215.14187901,0.00033095,2]
[328155060,1716953443869,-174.76,0.00033131,2]
[328155061,1716953443878,-239.31,0.00033436,2]
[328155062,1716953443887,-250.0,0.00033469,115]
[328155063,1716953443897,-1002.81749781,0.000337,2]
[328155064,1716953443906,-251.08730269,0.000337,2]
[328155065,1716953443921,-601.58930261,0.000337,2]
[328155066,1716953443931,-239.47,0.00033734,120]
[328155067,1716953443940,-1000.0,0.00034111,2]
[328155068,1716953443950,-2133.63263106,0.00034358,3]
[328155069,1716953443961,-2731.51668793,0.00034358,3]
[328155072,1716953446752,-1859.53120671,0.00034358,3]
[328155074,1716953447194,-1227.76506239,0.00034358,3]
[328155075,1716953488987,157.89,0.00013973,2]
[328155076,1716953624920,1510.62403298,0.00013,2]
[328155077,1716953624952,133640.72770399,0.00013,2]
[328155079,1716953834341,205.41308832,0.0002736,120]
[328155080,1716954088162,164.82,0.00013973,2]
[328155106,1716954577841,378.0,0.0002811,120]
[328155110,1716954632237,-2147.5402976,0.00015925,2]
[328155112,1716954632246,-158.86276178,0.00017125,2]
[328155114,1716954632256,-2990.89937712,0.00017225,2]
[328155115,1716954632265,-411.91157023,0.00029999,2]
[328155116,1716954632286,-5696.88748051,0.0003,2]
[328155117,1716954632296,-215.37,0.00031596,2]
[328155118,1716954632307,-226.01793324,0.00031948,7]
[328155119,1716954632317,-199.55,0.00033257,120]
[328155120,1716954632330,-874.96,0.00033286,2]
[328155121,1716954632340,-250.0,0.00033296,2]
[328155122,1716954632349,-250.0,0.00033343,2]
[328155123,1716954632359,-865.76,0.00033387,2]
[328155124,1716954632370,-10000.0,0.000334,12]
[328155125,1716954632379,-250.0,0.00033472,115]
[328155126,1716954632389,-150.0,0.00033472,2]
[328155127,1716954632399,-10000.0,0.000336,12]
[328155128,1716954632412,-10000.0,0.000338,12]
[328155129,1716954632423,-215.37,0.0003386,2]
[328155130,1716954632434,-6728.24846558,0.00034,12]
[328155131,1716954632445,-10000.0,0.00034,12]
[328155132,1716954632454,-3299.84099003,0.00034,12]
[328155133,1716954632464,-2128.76274,0.00034111,2]
[328155134,1716954632475,-169.53,0.00034186,2]
[328155135,1716954632485,-10000.0,0.000342,12]
[328155136,1716954632495,-18629.80627424,0.00034358,3]
[328155137,1716954632505,-556.0,0.00034435,2]
[328155138,1716954632515,-448.0,0.00034435,2]
[328155139,1716954632525,-10000.0,0.000346,12]
[328155140,1716954632535,-556.0,0.0003479,2]
[328155141,1716954632545,-448.0,0.0003479,2]
[328155142,1716954632554,-10000.0,0.000348,12]
[328155143,1716954632564,-255.0,0.00034987,2]
[328155144,1716954632574,-170.69,0.0003499,3]
[328155145,1716954632584,-512.11,0.0003499,3]
[328155146,1716954632593,-9277.79771159,0.00035,5]
[328155147,1716954632604,-1609.86486825,0.00035,4]
[328155148,1716954632614,-10000.0,0.00035,12]
[328155149,1716954632624,-3269.93236863,0.00035,2]
[328155151,1716954632633,-187.80272541,0.000351,10]
[328155153,1716954632642,-2087.507,0.000351,2]
[328155155,1716954632651,-556.0,0.00035145,2]
[328155156,1716954632661,-448.0,0.00035145,2]
[328155157,1716954632671,-10000.0,0.000352,12]
[328155158,1716954632680,-12942.2223,0.000353,2]
[328155160,1716954632691,-1000.0,0.000353,2]
[328155162,1716954632700,-150.62274789,0.0003539,7]
[328155163,1716954632709,-2140.84503975,0.00035398,2]
[328155165,1716954632719,-2140.84503972,0.00035398,2]
[328155167,1716954632729,-2140.84503972,0.00035399,2]
[328155169,1716954632738,-2140.84503972,0.00035399,2]
[328155171,1716954632748,-4082.1751,0.00035399,2]
[328155172,1716954632757,-2140.84503972,0.00035399,2]
[328155173,1716954632767,-2140.84503972,0.00035399,2]
[328155174,1716954632776,-2140.84503972,0.000354,2]
[328155175,1716954632785,-500.0,0.000354,2]
[328155176,1716954632795,-100000.0,0.000354,2]
[328155177,1716954632804,-10000.0,0.000354,12]
[328155178,1716954632813,-2140.84503972,0.000354,2]
[328155179,1716954632823,-1158.71310795,0.000354,2]
[328155180,1716954632832,-199.4474339,0.000354,2]
[328155181,1716954632842,-1030.672758,0.00035476,2]
[328155182,1716954632851,-1167.1601799,0.00035476,2]
[328155183,1716954632860,-1303.6476018,0.00035476,2]
[328155184,1716954632869,-1440.1350236,0.00035476,2]
[328155185,1716954632878,-1576.6224455,0.00035476,2]
[328155186,1716954632887,-500.0,0.00035488,21]
[328155187,1716954632896,-543.06938971,0.00035488,21]
[328155188,1716954632906,-1224.49338159,0.00035498,4]
[328155189,1716954632916,-168.23755691,0.00035498,4]
[328155190,1716954632926,-672.59930187,0.00035498,4]
[328155191,1716954632936,-328.81213102,0.00035498,4]
[328155192,1716954632947,-155.31745621,0.00035498,4]
[328155193,1716954632956,-214.97009456,0.00035498,2]
[328155194,1716954632966,-156.71596772,0.00035498,2]
[328155195,1716954632975,-2132.90707371,0.00035498,2]
[328155196,1716954632984,-2376.2443,0.00035499,2]
[328155197,1716954632994,-579.48017154,0.00035499,8]
[328155198,1716954633003,-500.0,0.00035499,8]
[328155199,1716954633013,-500.0,0.00035499,8]
[328155200,1716954633022,-500.0,0.00035499,8]
[328155201,1716954633031,-500.0,0.00035499,8]
[328155202,1716954633041,-500.0,0.00035499,8]
[328155203,1716954633050,-500.0,0.00035499,8]
[328155204,1716954633059,-500.0,0.00035499,8]
[328155205,1716954633069,-500.0,0.00035499,8]
[328155206,1716954633078,-500.0,0.00035499,8]
[328155207,1716954633087,-500.0,0.00035499,8]
[328155208,1716954633097,-500.0,0.00035499,120]
[328155209,1716954633106,-439.07278867,0.00035499,120]
[328155210,1716954633116,-1877.27,0.00035499,8]
[328155211,1716954633125,-1877.27,0.00035499,8]
[328155212,1716954633136,-1877.27,0.00035499,8]
[328155213,1716954633145,-1877.27,0.00035499,8]
[328155214,1716954633155,-1877.27,0.00035499,8]
[328155215,1716954633164,-1877.27,0.00035499,8]
[328155216,1716954633174,-1877.27,0.00035499,8]
[328155217,1716954633183,-1877.27,0.00035499,8]
[328155218,1716954633192,-1877.27,0.00035499,8]
[328155219,1716954633202,-1877.27,0.00035499,8]
[328155220,1716954633211,-1877.27,0.00035499,8]
[328155221,1716954633221,-1877.27,0.00035499,8]
[328155222,1716954633230,-1877.27,0.00035499,8]
[328155223,1716954633240,-1877.27,0.00035499,8]
[328155224,1716954633249,-1877.27,0.00035499,8]
[328155225,1716954633258,-1877.27,0.00035499,8]
[328155226,1716954633268,-1877.27,0.00035499,8]
[328155227,1716954633277,-1877.27,0.00035499,8]
[328155228,1716954633286,-1877.27,0.00035499,8]
[328155229,1716954633295,-1877.27,0.00035499,8]
[328155230,1716954633304,-1877.27,0.00035499,8]
[328155231,1716954633314,-1877.27,0.00035499,8]
[328155232,1716954633323,-1877.27,0.00035499,8]
[328155233,1716954633341,-1877.27301823,0.00035499,8]
[328155234,1716954633351,-223.0,0.000355,5]
[328155235,1716954633361,-419.54517095,0.000355,5]
[328155236,1716954633370,-2272.35238624,0.000355,11]
[328155237,1716954633380,-4000.42561358,0.000355,5]
[328155238,1716954633433,-2049.42770371,0.000355,5]
[328155239,1716954633446,-5807.34633996,0.000355,5]
[328155241,1716954638385,-360.51074572,0.000355,5]
[328155242,1716954638416,-28980.0,0.000355,5]
[328155243,1716954638430,-1001.76083561,0.000355,5]
[328155244,1716954639532,-911.48925428,0.000355,5]
[328155256,1716954640880,-204.0,0.000355,5]
[328155257,1716954640890,-2890.49258712,0.000355,5]
[328155258,1716954641896,-2064.77385338,0.000355,5]
[328155259,1716954641907,-771.32499999,0.000355,5]
[328155264,1716954644870,-3256.62596623,0.000355,5]
[328155265,1716954644882,-1118.787424,0.000355,5]
[328155268,1716954646306,-1483.1855,0.00035299,2]
[328155269,1716954646316,-406.2345,0.000354,8]
[328155270,1716954646592,-1568.56913662,0.000354,8]
[328155271,1716954646649,-1946.12506351,0.000354,8]
[328155272,1716954646661,-109.37994557,0.000354,8]
[328155273,1716954646670,-1264.46598375,0.000355,5]
[328155451,1716954738143,159.99,0.00013973,2]
[328155452,1716955210766,158.61,0.00013973,2]
[328155453,1716955625153,6180.49054583,0.00013973,2]
[328155459,1716955672161,155.7,0.00013973,2]
[328155463,1716955831440,-150.0,0.00019725,2]
[328155464,1716955831449,-214.60592809,0.00028879,2]
[328155465,1716955831460,-218.13485488,0.0002888,2]
[328155466,1716955831472,-5318.56012524,0.0002888,2]
[328155467,1716955831496,-685.05424735,0.0002888,2]
[328155468,1716955831507,-484.32,0.0002888,2]
[328155469,1716955831518,-332.51735565,0.0002888,2]
[328155470,1716955831562,-9151.41578901,0.0002888,2]
[328155471,1716955831619,-1327.21115575,0.0002888,2]
[328155472,1716955831676,-3913.38875614,0.0002888,2]
[328155473,1716955831688,-8443.82740532,0.0002888,2]
[328155474,1716955831700,-13391.26038166,0.0002888,2]
[328155475,1716955831713,-1089.61998701,0.0003079,2]
[328155476,1716955831723,-1272.0,0.000308,4]
[328155477,1716955831732,-476.0,0.000308,4]
[328155478,1716955831741,-15000.0,0.0003088,2]
[328155479,1716955831751,-159.99,0.00031546,2]
[328155480,1716955831761,-158.61,0.00031546,2]
[328155481,1716955831770,-107.82138491,0.00031546,2]
[328155482,1716955831782,-43.16861509,0.00031546,2]
[328155483,1716955831792,-466.92,0.00031546,2]
[328155484,1716955831802,-201.62,0.00031628,2]
[328155485,1716955831811,-250.0,0.000329,2]
[328155486,1716955831821,-600.0,0.000334,2]
[328155487,1716955831830,-751.0,0.000334,2]
[328155488,1716955831839,-2408.25345462,0.000334,2]
[328155489,1716955831851,-517.9614323,0.000334,2]
[328155491,1716955831862,-803.1102161,0.000334,2]
[328155493,1716955831872,-25.2288476,0.000334,2]
[328155494,1716955831881,-641.21724201,0.000334,2]
[328155506,1716955837457,-110.24351295,0.000334,2]
[328155507,1716955837467,-746.99310606,0.0003346,2]
[328155508,1716955837513,-385.81240221,0.0003346,2]
[328155509,1716955837525,-15.55449173,0.0003346,2]
[328155510,1716955837534,-250.0,0.0003352,2]
[328155511,1716955837544,-78.64639044,0.00033523,115]
[328155512,1716955837556,-171.35360956,0.00033523,115]
[328155513,1716955837575,-250.0,0.00033665,2]
[328155514,1716955837585,-819.96,0.00033668,2]
[328155515,1716955837595,-181.38130064,0.000337,2]
[328155516,1716955837607,-729.82228752,0.000337,2]
[328155517,1716955837619,-93.30695635,0.000337,2]
[328155518,1716955837629,-714.99185973,0.00033841,2]
[328155519,1716955837639,-201.62,0.00033892,2]
[328155520,1716955837648,-1012.60913675,0.00034,7]
[328155521,1716955837660,-1325.81220542,0.00034,7]
[328155522,1716955837671,-8099.83153463,0.00034,7]
[328155523,1716955837685,-4677.9289797,0.00034,7]
[328155524,1716955837695,-166.29,0.00034175,120]
[328155525,1716955837706,-551.0,0.00034435,2]
[328155526,1716955837717,-433.0,0.00034435,2]
[328155527,1716955837727,-551.0,0.0003479,2]
[328155528,1716955837737,-433.0,0.0003479,2]
[328155529,1716955837748,-3030.632,0.00034968,2]
[328155530,1716955837758,-152.0,0.00034979,3]
[328155531,1716955837767,-159.43,0.000351,6]
[328155532,1716955837777,-1773.96895,0.0003514,2]
[328155533,1716955837787,-3269.93236863,0.00035144,2]
[328155534,1716955837799,-551.0,0.00035145,2]
[328155535,1716955837814,-433.0,0.00035145,2]
[328155536,1716955837824,-600.0,0.00035251,2]
[328155537,1716955837834,-11881.02780743,0.000353,2]
[328155538,1716955837846,-25899.53319257,0.000353,2]
[328155539,1716955837856,-160.27118534,0.000353,10]
[328155541,1716955837866,-169.02245286,0.000353,10]
[328155543,1716955837876,-160.2711853,0.00035311,10]
[328155544,1716955837885,-160.2711853,0.00035322,10]
[328155545,1716955837895,-160.2711853,0.00035333,10]
[328155546,1716955837904,-160.2711853,0.00035344,10]
[328155547,1716955837914,-160.2711853,0.00035356,10]
[328155548,1716955837923,-160.2711853,0.00035367,10]
[328155549,1716955837936,-160.2711853,0.00035378,10]
[328155550,1716955837946,-160.2711853,0.00035389,10]
[328155551,1716955837955,-341.38,0.0003539,3]
[328155552,1716955837966,-14131.3884,0.000354,2]
[328155553,1716955837976,-160.2711853,0.000354,10]
[328155554,1716955837986,-183.23354116,0.000354,2]
[328155555,1716955837995,-2057.91089874,0.000354,2]
[328155556,1716955838005,-155.36916986,0.00035498,4]
[328155557,1716955838014,-430.36921855,0.00035498,4]
[328155558,1716955838024,-954.53263881,0.00035499,2]
[328155559,1716955838034,-500.0,0.00035499,8]
[328155560,1716955838044,-393.80394792,0.00035499,8]
[328155561,1716955838053,-155.65831247,0.00035499,8]
[328155562,1716955838063,-181.0,0.000355,5]
[328155563,1716955838074,-209.77258548,0.000355,5]
[328155564,1716955838083,-1136.17619312,0.000355,11]
[328155565,1716955838093,-1204143.92692435,0.000355,5]
[328155566,1716955838105,-6523.26823158,0.000355,5]
[328155567,1716955838117,-3363.19212537,0.000355,5]
[328155568,1716955839919,-922.8938064,0.000355,5]
[328155569,1716955839976,-662.47809905,0.000355,5]
[328155570,1716955840033,-4896.92,0.000355,5]
[328155571,1716955840045,-270404.47670525,0.000355,5]
[328155572,1716955840095,-45009.6069027,0.000355,5]
[328155573,1716955840157,-7058.3,0.000355,5]
[328155574,1716955840169,-390.65563268,0.000355,5]
[328155575,1716955840181,-665.94655514,0.000355,5]
[328155576,1716955840193,-421.87569295,0.000355,5]
[328155577,1716955840665,-659.94979241,0.000355,5]
[328155578,1716955840726,-696.2,0.000355,5]
[328155585,1716955842570,-6684.22014012,0.000355,5]
[328155586,1716955842628,-1735.58598513,0.000355,5]
[328155587,1716955842640,-646.1708148,0.000355,5]
[328155588,1716955842651,-24133.31069795,0.000355,5]
[328155589,1716955842740,-1883.65102,0.000355,5]
[328155590,1716955842754,-1378300.67064683,0.000355,5]
[328155591,1716955842850,-288.33809916,0.00035499,4]
[328155592,1716955842859,-207.11017375,0.000355,5]
[328155641,1716956157235,155.68,0.00013973,2]
[328155642,1716956182961,167.32,0.0002,10]
[328155643,1716956632469,157.89,0.00013973,2]
[328155792,1716957038565,-161.34970624,0.00017258,2]
[328155793,1716957038574,-428.90206147,0.00017259,2]
[328155794,1716957038583,-630.68,0.0002,10]
[328155795,1716957038592,-288.33809916,0.00031578,4]
[328155796,1716957038601,-189.68,0.00031579,2]
[328155797,1716957038610,-704.67717539,0.00032,2]
[328155798,1716957038619,-150.99,0.00032053,2]
[328155799,1716957038627,-7400.09138994,0.00032674,2]
[328155800,1716957038636,-752.67812519,0.000329,2]
[328155801,1716957038645,-250.0,0.00033602,115]
[328155802,1716957038654,-3497.61344261,0.00033621,120]
[328155803,1716957038665,-1106.76724469,0.00033621,120]
[328155815,1716957043046,-635.0504,0.00017155,2]
[328155816,1716957043055,-295.6193127,0.00033621,120]
[328155817,1716957043064,-178.55,0.00033631,2]
[328155818,1716957043074,-655.96,0.00033656,2]
[328155819,1716957043083,-1598.34,0.00033736,2]
[328155820,1716957043092,-250.0,0.00033797,2]
[328155821,1716957043101,-189.68,0.00033843,2]
[328155822,1716957043112,-150.18296499,0.00034,2]
[328155823,1716957043121,-173.34,0.00034387,2]
[328155824,1716957043130,-540.0,0.00034435,2]
[328155825,1716957043139,-166.29,0.00034555,120]
[328155826,1716957043148,-540.0,0.0003479,2]
[328155827,1716957043157,-1243.72409263,0.000349,30]
[328155828,1716957043169,-1883.53695773,0.000349,30]
[328155829,1716957043331,-715.6428383,0.000349,30]
[328155830,1716957043342,-583.29439999,0.000349,30]
[328155831,1716957043353,-3672.15280748,0.000349,30]
[328155834,1716957048682,-250.0,0.00034575,2]
[328155835,1716957048692,-3018.42980723,0.000349,30]
[328155843,1716957214485,159.34,0.00013973,2]
[328155844,1716957225676,162.86,0.00013,2]
[328155845,1716957225700,185505.91945417,0.00013,2]
[328155846,1716957225730,701808.35052259,0.00013,2]
[328155847,1716957225762,200000.0,0.00013,2]
[328155849,1716957268916,-192000.0,0.00013,2]
[328155851,1716957524817,-428.90206147,0.00012896,2]
[328155895,1716958232079,-309.69233443,0.00012778,2]
[328155896,1716958232088,-198.77965271,0.00012779,2]
[328155897,1716958232101,-230.12240876,0.00012779,2]
[328155898,1716958232110,-161.93155854,0.00012784,2]
[328155899,1716958232120,-180.86911539,0.000129,2]
[328155900,1716958232129,-161.93155853,0.000129,2]
[328155901,1716958232138,-183.23354115,0.000129,2]
[328155902,1716958232149,-416.00586307,0.000129,2]
[328155903,1716958232158,-150.0,0.00012999,2]
[328155904,1716958232168,-7011.64898856,0.00013,2]
[328155905,1716958232419,-1440.43885638,0.00013,2]
[328155906,1716958232431,-438.22300337,0.00013,2]
[328155908,1716958238129,-2815.62612065,0.00013,2]
[328155909,1716958238142,-14435.0,0.00013,2]
[328155910,1716958238519,-44915.03904363,0.00013,2]
[328155911,1716958238740,-5528.08095482,0.00013,2]
[328155933,1716958240878,-2411.38353327,0.00013,2]
[328155934,1716958240915,-2642.15021336,0.00013,2]
[328155935,1716958241961,-4373.57345492,0.00013,2]
[328155936,1716958242090,-2002.92176274,0.00013,2]
[328156002,1716958243286,-1376.75454,0.00013,2]
[328156026,1716958243444,-1991.53581801,0.00013,2]
[328156046,1716958243653,-142391.08075221,0.00013,2]
[328156051,1716958243690,-1455.0,0.00013,2]
[328156060,1716958243772,-3163.7968536,0.00013,2]
[328156293,1716958246096,-0.55445237,0.00013,2]
[328156307,1716958246224,-1946.2076772,0.00013,2]
[328156309,1716958246236,-3306.99999996,0.00013,2]
[328156313,1716958246259,-2869.35265126,0.00013,2]
[328157086,1716958268855,300.0,0.000128,4]
[328157087,1716958270924,700.0,0.000129,4]
[328157094,1716959162173,-428.90206147,0.00012275,2]
[328157095,1716959162193,-161.34970624,0.00012276,2]
[328157096,1716959162213,-1272.30734748,0.00012277,2]
[328157097,1716959162233,-371.07003528,0.00012702,2]
[328157098,1716959162254,-1766.37084953,0.000129,2]
[328157099,1716959163482,-166.05644922,0.000129,2]
[328157100,1716959163503,-179.99194171,0.000129,2]
[328157101,1716959163525,-203.93834011,0.000129,2]
[328157102,1716959163549,-364.00513016,0.000129,2]
[328157103,1716959163571,-219.0,0.00012999,2]
[328157104,1716959163596,-2867.0081388,0.00013,2]
[328157105,1716959164058,-4000.0,0.00013,2]
[328157106,1716959164592,-4000.0,0.00013,2]
[328157107,1716959165050,-4000.0,0.00013,2]
[328157108,1716959165640,-4000.0,0.00013,2]
[328157109,1716959166196,-4000.0,0.00013,2]
[328157110,1716959166699,-4000.0,0.00013,2]
[328157111,1716959167380,-4000.0,0.00013,2]
[328157112,1716959167838,-4000.0,0.00013,2]
[328157113,1716959168384,-4000.0,0.00013,2]
[328157114,1716959202581,-4000.0,0.00013,2]
[328157115,1716959203154,-4000.0,0.00013,2]
[328157116,1716959203768,-4000.0,0.00013,2]
[328157117,1716959204901,-4000.0,0.00013,2]
[328157118,1716959205687,-4000.0,0.00013,2]
[328157119,1716959207268,-4000.0,0.00013,2]
[328157120,1716959209186,-4000.0,0.00013,2]
[328157121,1716959229684,300.0,0.000128,4]
[328157122,1716959229955,-2255.20378,0.0001287,2]
[328157123,1716959229981,-1744.79622,0.00013,2]
[328157124,1716959231293,-4000.0,0.00013,2]
[328157125,1716959231766,600.0,0.000129,4]
[328157129,1716959244993,-4000.0,0.00013,2]
[328157130,1716959245643,-4000.0,0.00013,2]
[328157131,1716959246352,-4000.0,0.00013,2]
[328157138,1716959432729,-161.34970624,0.00012995,2]
[328157139,1716959432739,-1116.11029376,0.00012996,2]
[328157156,1716959438452,-614.93856926,0.00012996,2]
[328157157,1716959438610,-563.02332432,0.00012996,2]
[328157158,1716959438621,-428.90206147,0.00012996,2]
[328157159,1716959438631,-1000.0,0.00012999,2]
[328157160,1716959438640,-427.58645939,0.00013,2]
[328157219,1716959444224,-6880.0,0.00013,2]
[328157231,1716959444887,-5783.6507454,0.00013,2]
[328157232,1716959444898,-793.14237096,0.00013,2]
[328157280,1716959497657,-318.50448889,0.000129,2]
[328157281,1716959497684,-428.90206147,0.00012999,2]
[328157282,1716959497708,-161.34970624,0.00012999,2]
[328157283,1716959497733,-9298.2437434,0.00013,2]
[328157284,1716959501119,-10000.0,0.00013,2]
[328157285,1716959501521,-10000.0,0.00013,2]
[328157286,1716959501994,-10000.0,0.00013,2]
[328157287,1716959502353,-10000.0,0.00013,2]
[328157288,1716959502739,-10000.0,0.00013,2]
[328157289,1716959503098,-10000.0,0.00013,2]
[328157290,1716959503445,-10000.0,0.00013,2]
[328157291,1716959503800,-10000.0,0.00013,2]
[328157292,1716959504910,-10000.0,0.00013,2]
[328157293,1716959504962,-10000.0,0.00013,2]
[328157294,1716959505010,-10000.0,0.00013,2]
[328157295,1716959505578,-10000.0,0.00013,2]
[328157296,1716959505706,-10000.0,0.00013,2]
[328157297,1716959507103,-10000.0,0.00013,2]
[328157298,1716959507490,-10000.0,0.00013,2]
[328157299,1716959507858,-10000.0,0.00013,2]
[328157300,1716959508201,-10000.0,0.00013,2]